[Event "Titled Tuesday Blitz August 22 Late 2023"]
[White "Florianovitz, Derlei Alex"]
[Black "Figorito, Nick"]
[WhiteFideId "2114178"]
[BlackFideId "30923689"]
[WhiteElo "2199"]
[BlackElo "2354"]
[Result "1-0"]
[Round "4"]
[TimeControl "180+1"]
[Date "2023.08.22"]
[WhiteClock "0:00:37"]
[BlackClock "0:00:51"]
[Board "187"]

1. e4 {[%clk 0:03:00]}  e6 {[%clk 0:02:59]} 2. d4 {[%clk 0:03:00]}  d5 {[%clk 0:03:00]} 3. e5 {[%clk 0:03:01]}  c5 {[%clk 0:03:00]} 4. c3 {[%clk 0:03:01]}  Bd7 {[%clk 0:03:01]} 5. Nf3 {[%clk 0:03:01]}  Qb6 {[%clk 0:03:01]} 6. a3 {[%clk 0:02:53]}  Bb5 {[%clk 0:03:01]} 7. Bxb5+ {[%clk 0:02:50]}  Qxb5 {[%clk 0:03:02]} 8. b4 {[%clk 0:02:50]}  b6 {[%clk 0:02:58]} 9. a4 {[%clk 0:02:46]}  Qa6 {[%clk 0:02:55]} 10. b5 {[%clk 0:02:44]}  Qb7 {[%clk 0:02:53]} 11. O-O {[%clk 0:02:43]}  c4 {[%clk 0:02:48]} 12. Ba3 {[%clk 0:02:43]}  Bxa3 {[%clk 0:02:47]} 13. Nxa3 {[%clk 0:02:44]}  Ne7 {[%clk 0:02:47]} 14. Nc2 {[%clk 0:02:40]}  O-O {[%clk 0:02:47]} 15. h3 {[%clk 0:02:37]}  Nd7 {[%clk 0:02:47]} 16. Nh2 {[%clk 0:02:36]}  a6 {[%clk 0:02:46]} 17. f4 {[%clk 0:02:31]}  axb5 {[%clk 0:02:46]} 18. axb5 {[%clk 0:02:31]}  Rxa1 {[%clk 0:02:46]} 19. Qxa1 {[%clk 0:02:30]}  Ra8 {[%clk 0:02:46]} 20. Qb2 {[%clk 0:02:31]}  Qa7 {[%clk 0:02:42]} 21. Ra1 {[%clk 0:02:30]}  Qb7 {[%clk 0:02:42]} 22. Nb4 {[%clk 0:02:24]}  Nb8 {[%clk 0:02:18]} 23. g4 {[%clk 0:02:15]}  Ra7 {[%clk 0:02:15]} 24. Nf3 {[%clk 0:02:08]}  Qa8 {[%clk 0:02:13]} 25. Rxa7 {[%clk 0:02:04]}  Qxa7 {[%clk 0:02:13]} 26. Kf2 {[%clk 0:01:54]}  Qa4 {[%clk 0:02:10]} 27. Nc2 {[%clk 0:01:53]}  Nc8 {[%clk 0:02:01]} 28. f5 {[%clk 0:01:36]}  Na7 {[%clk 0:01:41]} 29. fxe6 {[%clk 0:01:30]}  fxe6 {[%clk 0:01:42]} 30. Ng5 {[%clk 0:01:30]}  Qxb5 {[%clk 0:01:42]} 31. Nb4 {[%clk 0:01:30]}  Qd7 {[%clk 0:01:32]} 32. Qc2 {[%clk 0:01:23]}  g6 {[%clk 0:01:23]} 33. h4 {[%clk 0:01:18]}  Qe7 {[%clk 0:01:17]} 34. Kg3 {[%clk 0:01:04]}  Nac6 {[%clk 0:01:16]} 35. Nxc6 {[%clk 0:01:01]}  Nxc6 {[%clk 0:01:17]} 36. Qa4 {[%clk 0:01:01]}  Nd8 {[%clk 0:01:12]} 37. Qa8 {[%clk 0:00:55]}  Kg7 {[%clk 0:01:05]} 38. Qxd8 {[%clk 0:00:54]}  Qxd8 {[%clk 0:00:58]} 39. Nxe6+ {[%clk 0:00:55]}  Kf7 {[%clk 0:00:56]} 40. Nxd8+ {[%clk 0:00:55]}  Ke8 {[%clk 0:00:56]} 41. Nc6 {[%clk 0:00:56]}  Kd7 {[%clk 0:00:56]} 42. Nb4 {[%clk 0:00:55]}  Ke6 {[%clk 0:00:56]} 43. Kf4 {[%clk 0:00:55]}  h6 {[%clk 0:00:57]} 44. g5 {[%clk 0:00:43]}  h5 {[%clk 0:00:56]} 45. Ke3 {[%clk 0:00:41]}  b5 {[%clk 0:00:49]} 46. Kf4 {[%clk 0:00:40]}  Kd7 {[%clk 0:00:48]} 47. Nxd5 {[%clk 0:00:40]}  Kc6 {[%clk 0:00:49]} 48. Nb4+ {[%clk 0:00:40]}  Kb6 {[%clk 0:00:50]} 49. e6 {[%clk 0:00:38]}  Kc7 {[%clk 0:00:50]} 50. Ke5 {[%clk 0:00:38]}  Kd8 {[%clk 0:00:50]} 51. d5 {[%clk 0:00:37]}  Ke7 {[%clk 0:00:51]} 1-0


[Site "https://www.chess.com"]

[Event "Titled Tuesday Blitz August 22 Late 2023"]
[White "Jin, Ashton"]
[Black "Palacio,Igor Da Paz"]
[WhiteFideId "30931908"]
[BlackFideId "2121140"]
[WhiteElo "2535"]
[BlackElo "2227"]
[Result "1-0"]
[Round "4"]
[TimeControl "180+1"]
[Date "2023.08.22"]
[WhiteClock "0:00:13"]
[BlackClock "0:00:00"]
[Board "190"]

1. e4 {[%clk 0:03:00]}  d6 {[%clk 0:02:59]} 2. d4 {[%clk 0:02:59]}  Nf6 {[%clk 0:02:59]} 3. Nc3 {[%clk 0:03:00]}  g6 {[%clk 0:02:59]} 4. Bg5 {[%clk 0:03:00]}  Bg7 {[%clk 0:02:59]} 5. Qd2 {[%clk 0:03:00]}  c6 {[%clk 0:02:56]} 6. O-O-O {[%clk 0:02:57]}  h6 {[%clk 0:02:33]} 7. Bh4 {[%clk 0:02:54]}  Qa5 {[%clk 0:02:31]} 8. f3 {[%clk 0:02:48]}  b5 {[%clk 0:02:23]} 9. Kb1 {[%clk 0:02:45]}  b4 {[%clk 0:02:21]} 10. Nce2 {[%clk 0:02:44]}  Be6 {[%clk 0:02:07]} 11. a3 {[%clk 0:02:37]}  Na6 {[%clk 0:01:51]} 12. Nc1 {[%clk 0:02:36]}  Rb8 {[%clk 0:01:46]} 13. Nh3 {[%clk 0:02:15]}  Qa4 {[%clk 0:01:39]} 14. Bxa6 {[%clk 0:02:13]}  Qxa6 {[%clk 0:01:40]} 15. axb4 {[%clk 0:02:11]}  O-O {[%clk 0:01:36]} 16. Nf4 {[%clk 0:02:07]}  Bd7 {[%clk 0:01:31]} 17. Nfd3 {[%clk 0:02:03]}  Be6 {[%clk 0:01:24]} 18. c3 {[%clk 0:01:47]}  Bc4 {[%clk 0:01:17]} 19. e5 {[%clk 0:01:45]}  Nd5 {[%clk 0:01:13]} 20. b3 {[%clk 0:01:40]}  Bxd3+ {[%clk 0:01:10]} 21. Qxd3 {[%clk 0:01:30]}  Qa3 {[%clk 0:01:01]} 22. exd6 {[%clk 0:01:23]}  exd6 {[%clk 0:01:00]} 23. Rd2 {[%clk 0:01:19]}  Nxb4 {[%clk 0:00:28]} 24. cxb4 {[%clk 0:01:18]}  Qxb4 {[%clk 0:00:26]} 25. Rhd1 {[%clk 0:01:11]}  Rfe8 {[%clk 0:00:24]} 26. Re2 {[%clk 0:01:02]}  Rec8 {[%clk 0:00:21]} 27. Rdd2 {[%clk 0:00:52]}  a5 {[%clk 0:00:20]} 28. Ra2 {[%clk 0:00:51]}  a4 {[%clk 0:00:19]} 29. Kc2 {[%clk 0:00:49]}  axb3+ {[%clk 0:00:19]} 30. Nxb3 {[%clk 0:00:50]}  c5 {[%clk 0:00:17]} 31. dxc5 {[%clk 0:00:37]}  Rxc5+ {[%clk 0:00:16]} 32. Nxc5 {[%clk 0:00:37]}  Qb1+ {[%clk 0:00:16]} 33. Kd2 {[%clk 0:00:38]}  Qxa2+ {[%clk 0:00:16]} 34. Ke3 {[%clk 0:00:38]}  Qa7 {[%clk 0:00:14]} 35. Rc2 {[%clk 0:00:27]}  dxc5 {[%clk 0:00:13]} 36. Qe4 {[%clk 0:00:23]}  c4+ {[%clk 0:00:06]} 37. Ke2 {[%clk 0:00:23]}  Qa6 {[%clk 0:00:06]} 38. Qxc4 {[%clk 0:00:20]}  Re8+ {[%clk 0:00:06]} 39. Kf2 {[%clk 0:00:18]}  Qe6 {[%clk 0:00:05]} 40. Qxe6 {[%clk 0:00:18]}  Rxe6 {[%clk 0:00:05]} 41. g4 {[%clk 0:00:18]}  Bf6 {[%clk 0:00:05]} 42. Bg3 {[%clk 0:00:19]}  Be5 {[%clk 0:00:05]} 43. Rc8+ {[%clk 0:00:18]}  Kg7 {[%clk 0:00:04]} 44. Bh4 {[%clk 0:00:18]}  Bf6 {[%clk 0:00:05]} 45. Bg3 {[%clk 0:00:19]}  Be5 {[%clk 0:00:05]} 46. f4 {[%clk 0:00:19]}  Bf6 {[%clk 0:00:04]} 47. h4 {[%clk 0:00:19]}  Be7 {[%clk 0:00:03]} 48. Kf3 {[%clk 0:00:19]}  Ra6 {[%clk 0:00:03]} 49. Rc3 {[%clk 0:00:18]}  Ra4 {[%clk 0:00:03]} 50. Re3 {[%clk 0:00:18]}  Bf6 {[%clk 0:00:03]} 51. g5 {[%clk 0:00:18]}  hxg5 {[%clk 0:00:03]} 52. hxg5 {[%clk 0:00:18]}  Bd8 {[%clk 0:00:03]} 53. Rd3 {[%clk 0:00:18]}  Bc7 {[%clk 0:00:02]} 54. Rc3 {[%clk 0:00:18]}  Bb6 {[%clk 0:00:02]} 55. Kg4 {[%clk 0:00:17]}  Rb4 {[%clk 0:00:02]} 56. Rd3 {[%clk 0:00:17]}  Ba5 {[%clk 0:00:02]} 57. Be1 {[%clk 0:00:16]}  Rb5 {[%clk 0:00:02]} 58. Bf2 {[%clk 0:00:15]}  Bb6 {[%clk 0:00:02]} 59. Be1 {[%clk 0:00:13]}  Bc7 {[%clk 0:00:02]} 60. Bc3+ {[%clk 0:00:13]}  Kf8 {[%clk 0:00:00]} 61. Rd7 {[%clk 0:00:13]} 1-0


[Site "https://www.chess.com"]

[Event "Titled Tuesday Blitz August 22 Late 2023"]
[White "Harriott, Tyrell"]
[Black "Kiseljova, Marya"]
[WhiteFideId "2086484"]
[BlackFideId "4155009"]
[WhiteElo "2393"]
[BlackElo "2201"]
[Result "1-0"]
[Round "4"]
[TimeControl "180+1"]
[Date "2023.08.22"]
[WhiteClock "0:01:04"]
[BlackClock "0:00:06"]
[Board "193"]

1. d4 {[%clk 0:03:00]}  d5 {[%clk 0:03:00]} 2. e3 {[%clk 0:03:00]}  Nf6 {[%clk 0:02:59]} 3. Bd3 {[%clk 0:02:59]}  c5 {[%clk 0:02:59]} 4. c3 {[%clk 0:02:59]}  Nc6 {[%clk 0:02:58]} 5. f4 {[%clk 0:02:53]}  Bg4 {[%clk 0:02:50]} 6. Ne2 {[%clk 0:02:52]}  e6 {[%clk 0:02:44]} 7. Nd2 {[%clk 0:02:50]}  Be7 {[%clk 0:02:39]} 8. O-O {[%clk 0:02:50]}  h5 {[%clk 0:02:33]} 9. Nf3 {[%clk 0:02:49]}  Qc7 {[%clk 0:02:27]} 10. Ne5 {[%clk 0:02:49]}  Nxe5 {[%clk 0:02:10]} 11. fxe5 {[%clk 0:02:44]}  Nh7 {[%clk 0:01:52]} 12. Qe1 {[%clk 0:02:41]}  Bxe2 {[%clk 0:01:51]} 13. Qxe2 {[%clk 0:02:40]}  g6 {[%clk 0:01:43]} 14. e4 {[%clk 0:02:34]}  dxe4 {[%clk 0:01:35]} 15. Qxe4 {[%clk 0:02:26]}  Ng5 {[%clk 0:01:33]} 16. Bb5+ {[%clk 0:02:22]}  Kd8 {[%clk 0:01:26]} 17. Bxg5 {[%clk 0:02:16]}  Bxg5 {[%clk 0:01:26]} 18. Rad1 {[%clk 0:02:14]}  a6 {[%clk 0:01:24]} 19. dxc5+ {[%clk 0:02:12]}  Kc8 {[%clk 0:01:24]} 20. Bd7+ {[%clk 0:02:08]}  Kb8 {[%clk 0:01:22]} 21. b4 {[%clk 0:02:08]}  Rf8 {[%clk 0:01:07]} 22. Ba4 {[%clk 0:02:04]}  Rd8 {[%clk 0:00:50]} 23. Rxd8+ {[%clk 0:02:01]}  Bxd8 {[%clk 0:00:46]} 24. Rd1 {[%clk 0:01:58]}  b5 {[%clk 0:00:30]} 25. cxb6 {[%clk 0:01:46]}  Qxb6+ {[%clk 0:00:30]} 26. Kh1 {[%clk 0:01:46]}  Ra7 {[%clk 0:00:25]} 27. c4 {[%clk 0:01:42]}  Bc7 {[%clk 0:00:23]} 28. c5 {[%clk 0:01:40]}  Qb7 {[%clk 0:00:22]} 29. Bc6 {[%clk 0:01:39]}  Qc8 {[%clk 0:00:20]} 30. Bd7 {[%clk 0:01:38]}  Qb7 {[%clk 0:00:20]} 31. Bc6 {[%clk 0:01:28]}  Qc8 {[%clk 0:00:19]} 32. a4 {[%clk 0:01:21]}  Bd8 {[%clk 0:00:13]} 33. b5 {[%clk 0:01:17]}  axb5 {[%clk 0:00:12]} 34. axb5 {[%clk 0:01:18]}  Ra2 {[%clk 0:00:12]} 35. h3 {[%clk 0:01:07]}  Bh4 {[%clk 0:00:06]} 36. Qxh4 {[%clk 0:01:04]} 1-0


[Site "https://www.chess.com"]

[Event "Titled Tuesday Blitz August 22 Late 2023"]
[White "Guzman Moneo, Alberto"]
[Black "Quirke, Jeffrey"]
[WhiteFideId "2209616"]
[BlackFideId "2013029"]
[WhiteElo "2336"]
[BlackElo "2165"]
[Result "1-0"]
[Round "4"]
[TimeControl "180+1"]
[Date "2023.08.22"]
[WhiteClock "0:01:26"]
[BlackClock "0:00:44"]
[Board "196"]

1. e4 {[%clk 0:02:40]}  Nf6 {[%clk 0:02:59]} 2. e5 {[%clk 0:02:36]}  Nd5 {[%clk 0:02:58]} 3. c4 {[%clk 0:02:37]}  Nb6 {[%clk 0:02:57]} 4. d4 {[%clk 0:02:37]}  d6 {[%clk 0:02:56]} 5. exd6 {[%clk 0:02:38]}  exd6 {[%clk 0:02:55]} 6. Nc3 {[%clk 0:02:38]}  Be7 {[%clk 0:02:51]} 7. Bd3 {[%clk 0:02:37]}  O-O {[%clk 0:02:48]} 8. Be3 {[%clk 0:02:37]}  Bf6 {[%clk 0:02:48]} 9. Nf3 {[%clk 0:02:35]}  Nc6 {[%clk 0:02:45]} 10. d5 {[%clk 0:02:34]}  Ne5 {[%clk 0:02:28]} 11. Nxe5 {[%clk 0:02:33]}  Bxe5 {[%clk 0:02:27]} 12. O-O {[%clk 0:02:32]}  Nxc4 {[%clk 0:02:16]} 13. Bxc4 {[%clk 0:02:29]}  Qh4 {[%clk 0:02:02]} 14. f4 {[%clk 0:02:28]}  Bxc3 {[%clk 0:01:51]} 15. bxc3 {[%clk 0:02:29]}  Re8 {[%clk 0:01:50]} 16. Bd4 {[%clk 0:02:22]}  Bg4 {[%clk 0:01:48]} 17. Qd2 {[%clk 0:02:08]}  Re7 {[%clk 0:01:33]} 18. Rae1 {[%clk 0:02:06]}  Rae8 {[%clk 0:01:33]} 19. Rxe7 {[%clk 0:02:06]}  Rxe7 {[%clk 0:01:34]} 20. g3 {[%clk 0:02:04]}  Qh5 {[%clk 0:01:22]} 21. Re1 {[%clk 0:02:03]}  Rxe1+ {[%clk 0:01:18]} 22. Qxe1 {[%clk 0:02:04]}  Kf8 {[%clk 0:01:18]} 23. Qe3 {[%clk 0:01:50]}  Bf3 {[%clk 0:01:17]} 24. Bb5 {[%clk 0:01:40]}  c6 {[%clk 0:01:14]} 25. Bf1 {[%clk 0:01:35]}  Bxd5 {[%clk 0:01:08]} 26. c4 {[%clk 0:01:30]}  Bf3 {[%clk 0:01:02]} 27. Bxa7 {[%clk 0:01:30]}  c5 {[%clk 0:00:44]} 28. Bb8 {[%clk 0:01:26]} 1-0


[Site "https://www.chess.com"]

[Event "Titled Tuesday Blitz August 22 Late 2023"]
[White "kiwibobo"]
[Black "Erece, Ece Alkim"]
[BlackFideId "6346006"]
[WhiteElo "2318"]
[BlackElo "2157"]
[Result "0-1"]
[Round "4"]
[TimeControl "180+1"]
[Date "2023.08.22"]
[WhiteClock "0:00:21"]
[BlackClock "0:00:23"]
[Board "197"]

1. e4 {[%clk 0:03:00]}  c5 {[%clk 0:02:59]} 2. Nf3 {[%clk 0:03:00]}  a6 {[%clk 0:02:56]} 3. c4 {[%clk 0:02:59]}  e6 {[%clk 0:02:55]} 4. d4 {[%clk 0:02:59]}  cxd4 {[%clk 0:02:55]} 5. Nxd4 {[%clk 0:03:00]}  Qc7 {[%clk 0:02:56]} 6. Nc3 {[%clk 0:03:00]}  Nf6 {[%clk 0:02:53]} 7. Be2 {[%clk 0:02:58]}  b6 {[%clk 0:02:48]} 8. O-O {[%clk 0:02:53]}  Bb7 {[%clk 0:02:48]} 9. f3 {[%clk 0:02:51]}  Bd6 {[%clk 0:02:47]} 10. f4 {[%clk 0:02:11]}  Nxe4 {[%clk 0:02:44]} 11. Nxe4 {[%clk 0:02:07]}  Bxe4 {[%clk 0:02:42]} 12. Bf3 {[%clk 0:02:07]}  Bxf3 {[%clk 0:02:41]} 13. Qxf3 {[%clk 0:02:08]}  Nc6 {[%clk 0:02:40]} 14. Be3 {[%clk 0:01:59]}  Bc5 {[%clk 0:02:33]} 15. Kh1 {[%clk 0:01:54]}  O-O {[%clk 0:02:32]} 16. Rad1 {[%clk 0:01:51]}  Rac8 {[%clk 0:01:43]} 17. Nxc6 {[%clk 0:01:45]}  Qxc6 {[%clk 0:01:42]} 18. Qxc6 {[%clk 0:01:41]}  Rxc6 {[%clk 0:01:43]} 19. Bxc5 {[%clk 0:01:41]}  Rxc5 {[%clk 0:01:44]} 20. Rxd7 {[%clk 0:01:39]}  Rxc4 {[%clk 0:01:44]} 21. Rd6 {[%clk 0:01:34]}  Rb8 {[%clk 0:01:37]} 22. Rfd1 {[%clk 0:01:32]}  g6 {[%clk 0:01:34]} 23. h3 {[%clk 0:01:29]}  Rxf4 {[%clk 0:01:33]} 24. Rc1 {[%clk 0:01:26]}  Rf2 {[%clk 0:01:29]} 25. b3 {[%clk 0:01:22]}  Rxa2 {[%clk 0:01:29]} 26. Rc7 {[%clk 0:01:23]}  a5 {[%clk 0:01:25]} 27. Rdd7 {[%clk 0:01:17]}  Rf2 {[%clk 0:01:23]} 28. Kg1 {[%clk 0:01:14]}  Rf5 {[%clk 0:01:19]} 29. Kh2 {[%clk 0:01:08]}  b5 {[%clk 0:01:17]} 30. g4 {[%clk 0:01:09]}  Rf6 {[%clk 0:01:11]} 31. Ra7 {[%clk 0:01:06]}  a4 {[%clk 0:00:53]} 32. bxa4 {[%clk 0:01:05]}  bxa4 {[%clk 0:00:48]} 33. Rxa4 {[%clk 0:01:04]}  Rb2+ {[%clk 0:00:48]} 34. Kg3 {[%clk 0:01:01]}  Rbf2 {[%clk 0:00:47]} 35. Raa7 {[%clk 0:00:54]}  R6f3+ {[%clk 0:00:42]} 36. Kh4 {[%clk 0:00:53]}  h6 {[%clk 0:00:42]} 37. g5 {[%clk 0:00:22]}  Rf4+ {[%clk 0:00:37]} 38. Kg3 {[%clk 0:00:21]}  hxg5 {[%clk 0:00:37]} 39. Ra8+ {[%clk 0:00:20]}  Kg7 {[%clk 0:00:37]} 40. Ra3 {[%clk 0:00:21]}  e5 {[%clk 0:00:25]} 41. Re3 {[%clk 0:00:21]}  e4 {[%clk 0:00:25]} 42. Ra3 {[%clk 0:00:21]}  R4f3+ {[%clk 0:00:24]} 43. Rxf3 {[%clk 0:00:22]}  Rxf3+ {[%clk 0:00:25]} 44. Kg2 {[%clk 0:00:22]}  Kf6 {[%clk 0:00:23]} 45. Rd6+ {[%clk 0:00:23]}  Ke5 {[%clk 0:00:23]} 46. Rd8 {[%clk 0:00:23]}  f5 {[%clk 0:00:23]} 47. Rg8 {[%clk 0:00:23]}  Kf4 {[%clk 0:00:23]} 48. Rxg6 {[%clk 0:00:24]}  e3 {[%clk 0:00:24]} 49. Re6 {[%clk 0:00:25]}  Rf2+ {[%clk 0:00:23]} 50. Kg1 {[%clk 0:00:25]}  Kf3 {[%clk 0:00:23]} 51. Re5 {[%clk 0:00:24]}  f4 {[%clk 0:00:23]} 52. Rxg5 {[%clk 0:00:19]}  e2 {[%clk 0:00:24]} 53. Re5 {[%clk 0:00:19]}  Rf1+ {[%clk 0:00:24]} 54. Kh2 {[%clk 0:00:20]}  e1=Q {[%clk 0:00:24]} 55. Rg5 {[%clk 0:00:21]}  Rh1# {[%clk 0:00:23]} 0-1


[Site "https://www.chess.com"]

[Event "Titled Tuesday Blitz August 22 Late 2023"]
[White "Hoffmann, Asa"]
[Black "Bongo Akanga Ndjila, Barthelemy"]
[WhiteFideId "2001470"]
[BlackFideId "10609431"]
[WhiteElo "2288"]
[BlackElo "2041"]
[Result "1-0"]
[Round "4"]
[TimeControl "180+1"]
[Date "2023.08.22"]
[WhiteClock "0:02:11"]
[BlackClock "0:01:20"]
[Board "202"]

1. d4 {[%clk 0:02:58]}  d5 {[%clk 0:02:58]} 2. Bg5 {[%clk 0:02:54]}  f6 {[%clk 0:02:53]} 3. Bf4 {[%clk 0:02:53]}  g5 {[%clk 0:02:51]} 4. Bg3 {[%clk 0:02:53]}  Nh6 {[%clk 0:02:50]} 5. e3 {[%clk 0:02:51]}  Nf7 {[%clk 0:02:46]} 6. h4 {[%clk 0:02:50]}  g4 {[%clk 0:02:35]} 7. Bd3 {[%clk 0:02:49]}  f5 {[%clk 0:02:26]} 8. Ne2 {[%clk 0:02:48]}  Bg7 {[%clk 0:02:25]} 9. c4 {[%clk 0:02:47]}  c6 {[%clk 0:02:22]} 10. Nbc3 {[%clk 0:02:47]}  e5 {[%clk 0:02:20]} 11. cxd5 {[%clk 0:02:44]}  cxd5 {[%clk 0:02:18]} 12. dxe5 {[%clk 0:02:44]}  Bxe5 {[%clk 0:02:15]} 13. Nf4 {[%clk 0:02:40]}  d4 {[%clk 0:02:01]} 14. exd4 {[%clk 0:02:38]}  Bxd4 {[%clk 0:02:02]} 15. Qe2+ {[%clk 0:02:31]}  Qe7 {[%clk 0:01:58]} 16. Ncd5 {[%clk 0:02:27]}  Qxe2+ {[%clk 0:01:56]} 17. Nxe2 {[%clk 0:02:27]}  Bb6 {[%clk 0:01:47]} 18. Nxb6 {[%clk 0:02:26]}  axb6 {[%clk 0:01:47]} 19. Nd4 {[%clk 0:02:19]}  O-O {[%clk 0:01:36]} 20. O-O {[%clk 0:02:17]}  Rd8 {[%clk 0:01:35]} 21. Bxf5 {[%clk 0:02:13]}  Rxd4 {[%clk 0:01:32]} 22. Bxc8 {[%clk 0:02:12]}  Nc6 {[%clk 0:01:20]} 23. Bxb7 {[%clk 0:02:11]} 1-0


[Site "https://www.chess.com"]

[Event "Titled Tuesday Blitz August 22 Late 2023"]
[White "Schut, Han"]
[Black "Djordjevic, Dejan N"]
[WhiteFideId "1005561"]
[BlackFideId "913316"]
[WhiteElo "2257"]
[BlackElo "2017"]
[Result "0-1"]
[Round "4"]
[TimeControl "180+1"]
[Date "2023.08.22"]
[WhiteClock "0:00:11"]
[BlackClock "0:01:54"]
[Board "206"]

1. e4 {[%clk 0:03:00]}  c5 {[%clk 0:02:59]} 2. Nf3 {[%clk 0:02:56]}  Nc6 {[%clk 0:03:00]} 3. d4 {[%clk 0:02:57]}  cxd4 {[%clk 0:03:00]} 4. Nxd4 {[%clk 0:02:58]}  Nf6 {[%clk 0:03:00]} 5. Nc3 {[%clk 0:02:57]}  Qb6 {[%clk 0:02:59]} 6. Nb3 {[%clk 0:02:52]}  e6 {[%clk 0:02:59]} 7. Be3 {[%clk 0:02:51]}  Qc7 {[%clk 0:03:00]} 8. a3 {[%clk 0:02:50]}  a6 {[%clk 0:03:00]} 9. Bd3 {[%clk 0:02:48]}  b5 {[%clk 0:03:00]} 10. O-O {[%clk 0:02:45]}  Be7 {[%clk 0:02:59]} 11. f4 {[%clk 0:02:43]}  d6 {[%clk 0:02:59]} 12. Qe1 {[%clk 0:02:41]}  O-O {[%clk 0:02:59]} 13. Qg3 {[%clk 0:02:38]}  Rb8 {[%clk 0:02:58]} 14. Qh3 {[%clk 0:02:29]}  b4 {[%clk 0:02:50]} 15. axb4 {[%clk 0:02:28]}  Nxb4 {[%clk 0:02:49]} 16. Rad1 {[%clk 0:01:49]}  Nxd3 {[%clk 0:02:49]} 17. Rxd3 {[%clk 0:01:49]}  a5 {[%clk 0:02:46]} 18. Bd4 {[%clk 0:01:16]}  Ba6 {[%clk 0:02:44]} 19. Rg3 {[%clk 0:01:08]}  Bxf1 {[%clk 0:02:40]} 20. Kxf1 {[%clk 0:01:08]}  a4 {[%clk 0:02:33]} 21. e5 {[%clk 0:00:59]}  dxe5 {[%clk 0:02:17]} 22. fxe5 {[%clk 0:00:54]}  Qc4+ {[%clk 0:02:10]} 23. Ke1 {[%clk 0:00:38]}  Ne8 {[%clk 0:01:55]} 24. Qh4 {[%clk 0:00:11]}  Bxh4 {[%clk 0:01:54]} 0-1


[Site "https://www.chess.com"]

[Event "Titled Tuesday Blitz August 22 Late 2023"]
[White "Ahmadzada, Ahmad"]
[Black "Nakamura, Hikaru"]
[WhiteFideId "13413007"]
[BlackFideId "2016192"]
[WhiteElo "2967"]
[BlackElo "3226"]
[Result "0-1"]
[Round "5"]
[TimeControl "180+1"]
[Date "2023.08.22"]
[WhiteClock "0:00:01"]
[BlackClock "0:00:16"]
[Board "1"]

1. e4 {[%clk 0:03:00]}  a6 {[%clk 0:03:00]} 2. d4 {[%clk 0:02:55]}  c6 {[%clk 0:03:00]} 3. Nf3 {[%clk 0:02:54]}  d5 {[%clk 0:03:00]} 4. Nc3 {[%clk 0:02:54]}  Bg4 {[%clk 0:02:59]} 5. Be2 {[%clk 0:02:50]}  e6 {[%clk 0:02:58]} 6. O-O {[%clk 0:02:50]}  dxe4 {[%clk 0:02:54]} 7. Nxe4 {[%clk 0:02:49]}  Nf6 {[%clk 0:02:55]} 8. Nxf6+ {[%clk 0:02:44]}  gxf6 {[%clk 0:02:55]} 9. c3 {[%clk 0:02:41]}  Bd6 {[%clk 0:02:53]} 10. Ne1 {[%clk 0:02:39]}  Bxe2 {[%clk 0:02:53]} 11. Qxe2 {[%clk 0:02:40]}  Nd7 {[%clk 0:02:54]} 12. Nd3 {[%clk 0:02:33]}  Qc7 {[%clk 0:02:53]} 13. Qh5 {[%clk 0:02:31]}  Ke7 {[%clk 0:02:47]} 14. c4 {[%clk 0:02:29]}  c5 {[%clk 0:02:44]} 15. d5 {[%clk 0:02:27]}  Rag8 {[%clk 0:02:29]} 16. Re1 {[%clk 0:02:12]}  Ne5 {[%clk 0:02:22]} 17. Nf4 {[%clk 0:01:49]}  Ng6 {[%clk 0:02:02]} 18. dxe6 {[%clk 0:01:35]}  Bxf4 {[%clk 0:01:58]} 19. Bxf4 {[%clk 0:01:34]}  Qc6 {[%clk 0:01:52]} 20. exf7+ {[%clk 0:01:21]}  Kxf7 {[%clk 0:01:53]} 21. Bg3 {[%clk 0:01:20]}  Rd8 {[%clk 0:01:51]} 22. Rad1 {[%clk 0:01:18]}  Kg7 {[%clk 0:01:51]} 23. Rd5 {[%clk 0:01:16]}  Rxd5 {[%clk 0:01:50]} 24. cxd5 {[%clk 0:01:17]}  Qd7 {[%clk 0:01:50]} 25. d6 {[%clk 0:01:16]}  Re8 {[%clk 0:01:48]} 26. Rxe8 {[%clk 0:01:12]}  Qxe8 {[%clk 0:01:48]} 27. h4 {[%clk 0:01:13]}  b6 {[%clk 0:01:44]} 28. Qg4 {[%clk 0:01:13]}  Kf7 {[%clk 0:01:40]} 29. h5 {[%clk 0:01:07]}  Nf8 {[%clk 0:01:40]} 30. Qc4+ {[%clk 0:01:06]}  Kg7 {[%clk 0:01:33]} 31. Qxa6 {[%clk 0:01:07]}  Qxh5 {[%clk 0:01:34]} 32. Qd3 {[%clk 0:00:59]}  Qg4 {[%clk 0:01:28]} 33. b3 {[%clk 0:00:56]}  h5 {[%clk 0:01:26]} 34. a4 {[%clk 0:00:33]}  h4 {[%clk 0:01:25]} 35. Bh2 {[%clk 0:00:33]}  Kf7 {[%clk 0:01:23]} 36. Kh1 {[%clk 0:00:27]}  Qd4 {[%clk 0:01:17]} 37. Qf3 {[%clk 0:00:23]}  Kg6 {[%clk 0:00:55]} 38. Bf4 {[%clk 0:00:19]}  f5 {[%clk 0:00:45]} 39. Qc6 {[%clk 0:00:12]}  Kf7 {[%clk 0:00:25]} 40. Qc7+ {[%clk 0:00:10]}  Kg6 {[%clk 0:00:26]} 41. Qc6 {[%clk 0:00:08]}  Kf7 {[%clk 0:00:21]} 42. Qf3 {[%clk 0:00:06]}  Kg6 {[%clk 0:00:19]} 43. g3 {[%clk 0:00:04]}  hxg3 {[%clk 0:00:18]} 44. Bxg3 {[%clk 0:00:04]}  Nd7 {[%clk 0:00:17]} 45. Qc6 {[%clk 0:00:04]}  Nf6 {[%clk 0:00:17]} 46. Kg2 {[%clk 0:00:03]}  f4 {[%clk 0:00:17]} 47. Bh4 {[%clk 0:00:02]}  f3+ {[%clk 0:00:17]} 48. Kxf3 {[%clk 0:00:02]}  Qxh4 {[%clk 0:00:15]} 49. Qxb6 {[%clk 0:00:03]}  Qg4+ {[%clk 0:00:15]} 50. Ke3 {[%clk 0:00:01]}  Nd5+ {[%clk 0:00:16]} 0-1


[Site "https://www.chess.com"]